bitfinex-derivatives/quotes_BTCF0:USTF0_20241208
["timestamp","ask_amount","ask_price","bid_price","bid_amount"]
[1733623051145,0.0361,99848.0,99847.0,0.00150227]
[1733623051557,0.0371,99848.0,99847.0,0.00150227]
[1733623052656,0.00208,99848.0,99847.0,0.00150227]
[1733623052855,0.11912883,99855.0,99847.0,0.03633147]
[1733623052856,0.08934662,99855.0,99847.0,0.03633147]
[1733623053050,0.3608,99858.0,99850.0,9.502e-05]
[1733623053256,0.3608,99858.0,99854.0,0.00016]
[1733623053455,0.03502,99856.0,99855.0,0.0031292]
[1733623053949,0.03502,99856.0,99854.0,0.00016]
[1733623054151,0.3608,99855.0,99854.0,0.00016]
[1733623054362,0.4414521,99855.0,99854.0,0.00016]
[1733623054559,0.62024602,99855.0,99854.0,0.00016]
[1733623054759,0.62124602,99855.0,99854.0,0.00016]
[1733623054961,0.44245546,99855.0,99854.0,0.00016]
[1733623055263,0.62124938,99855.0,99854.0,0.00016]
[1733623055462,0.62024938,99855.0,99854.0,0.00016]
[1733623055761,0.44145546,99855.0,99854.0,0.00016]
[1733623056160,0.44245546,99855.0,99854.0,0.00016]
[1733623056660,0.62110252,99855.0,99854.0,0.00016]
[1733623057350,0.44245611,99855.0,99854.0,0.00016]
[1733623057668,0.39378,99855.0,99854.0,0.00016]
[1733623057858,0.54265041,99855.0,99854.0,0.00016]
[1733623059359,0.39378,99855.0,99854.0,0.00016]
[1733623061264,0.4424576,99855.0,99854.0,0.00016]
[1733623062165,0.8032576,99855.0,99854.0,0.00016]
[1733623062566,0.90348888,99855.0,99854.0,0.00016]
[1733623063273,0.75458,99855.0,99854.0,0.00016]
[1733623064173,0.90351007,99855.0,99854.0,0.00016]
[1733623064472,0.80325734,99855.0,99854.0,0.00016]
[1733623068176,0.82330941,99855.0,99854.0,0.00016]
[1733623068766,0.77135734,99855.0,99854.0,0.00016]
[1733623068977,0.72268,99855.0,99854.0,0.00016]
[1733623069278,0.36188,99855.0,99854.0,0.00016]
[1733623069468,0.36188,99855.0,99854.0,0.00328927]
[1733623069771,0.36188,99855.0,99854.0,0.00016]
[1733623069977,0.36188,99855.0,99854.0,0.00328928]
[1733623070574,0.36188,99855.0,99854.0,0.00016]
[1733623070879,0.36188,99855.0,99854.0,0.00328901]
[1733623071964,0.48113407,99855.0,99854.0,0.00328901]
[1733623072777,0.36188,99855.0,99854.0,0.00328901]
[1733623074080,0.396901,99855.0,99854.0,0.00328901]
[1733623076679,0.4863542,99855.0,99854.0,0.00328901]
[1733623076881,0.396901,99855.0,99854.0,0.00328901]
[1733623077275,0.4863542,99855.0,99854.0,0.00328901]
[1733623077586,0.4863542,99855.0,99854.0,0.00328909]
[1733623077970,0.396901,99855.0,99854.0,0.00328909]
[1733623078578,0.48637366,99855.0,99854.0,0.00328909]
[1733623079293,0.396901,99855.0,99854.0,0.00328909]
[1733623079577,0.48637105,99855.0,99854.0,0.00328909]
[1733623079778,0.396901,99855.0,99854.0,0.00328909]
[1733623081083,0.51615507,99855.0,99854.0,0.00328909]
[1733623082174,0.51618748,99855.0,99854.0,0.00328909]
[1733623082975,0.396901,99855.0,99854.0,0.00016]
[1733623083475,0.54595282,99855.0,99854.0,0.00016]
[1733623083671,0.44557435,99855.0,99854.0,0.00016]
[1733623085184,0.396901,99855.0,99854.0,0.00016]
[1733623085483,0.54601608,99855.0,99854.0,0.00016]
[1733623086071,0.396901,99855.0,99854.0,0.00016]
[1733623086284,0.54601608,99855.0,99854.0,0.00016]
[1733623086578,0.396901,99855.0,99854.0,0.00016]
[1733623086881,0.44557583,99855.0,99854.0,0.00016]
[1733623087678,0.80637583,99855.0,99854.0,0.00016]
[1733623088480,0.9850174,99855.0,99854.0,0.035181]
[1733623088781,0.757701,99855.0,99854.0,0.03831053]
[1733623088981,0.396901,99855.0,99854.0,0.03831053]
[1733623091178,0.396901,99855.0,99854.0,0.035181]
[1733623091688,0.396901,99855.0,99854.0,0.00016]
[1733623091879,0.396901,99855.0,99854.0,0.0032893]
[1733623092083,0.5460645,99855.0,99854.0,0.0032893]
[1733623092278,0.396901,99855.0,99854.0,0.0032893]
[1733623092886,0.44557126,99855.0,99854.0,0.0032893]
[1733623093278,0.44557126,99855.0,99854.0,0.00016]
[1733623093482,0.44557126,99855.0,99854.0,0.00328917]
[1733623093680,0.44557126,99855.0,99854.0,0.00641834]
[1733623093886,0.44557126,99855.0,99854.0,0.00328917]
[1733623094588,0.44557138,99855.0,99854.0,0.00328917]
[1733623095193,0.396901,99855.0,99854.0,0.03831017]
[1733623099388,0.51634329,99855.0,99854.0,0.03831017]
[1733623100191,0.396901,99855.0,99854.0,0.03831017]
[1733623100389,0.51634346,99855.0,99854.0,0.03831017]
[1733623100687,0.51634489,99855.0,99854.0,0.03831017]
[1733623101189,0.396901,99855.0,99854.0,0.03831017]
[1733623101982,0.036101,99855.0,99854.0,0.03831017]
[1733623103889,0.15554489,99855.0,99854.0,0.035181]
[1733623104195,0.15559908,99855.0,99854.0,0.03831007]
[1733623105088,0.15560071,99855.0,99854.0,0.03831007]
[1733623106400,0.036101,99855.0,99854.0,0.03831007]
[1733623106591,0.036101,99855.0,99854.0,0.00328907]
[1733623106792,0.036101,99855.0,99854.0,0.18327476]
[1733623106995,0.036101,99855.0,99854.0,0.00328925]
[1733623110298,0.08477263,99855.0,99854.0,0.00328926]
[1733623110496,0.036101,99855.0,99854.0,0.00016]
[1733623110689,0.20514194,99855.0,99854.0,0.00016]
[1733623112096,0.20534127,99855.0,99854.0,0.00016]
[1733623112287,0.08477263,99855.0,99854.0,0.00328941]
[1733623113002,0.08477263,99855.0,99854.0,0.00312941]
[1733623113500,0.2054178,99855.0,99854.0,0.00312941]
[1733623113704,0.035022,99851.0,99850.0,9.502e-05]
[1733623113995,0.21439817,99851.0,99850.0,9.502e-05]
[1733623114203,0.2630698,99851.0,99850.0,0.00322427]
[1733623114798,0.2640698,99851.0,99850.0,0.00322427]
[1733623114992,0.6248698,99851.0,99850.0,0.00322427]
[1733623115194,0.44657363,99851.0,99850.0,0.00322427]
[1733623116400,0.44657363,99851.0,99850.0,0.03824627]
[1733623116796,0.62596206,99851.0,99850.0,0.03824627]
[1733623117304,0.397902,99851.0,99850.0,0.03824627]
[1733623119402,0.36288,99851.0,99850.0,0.03824627]
[1733623119597,0.00208,99851.0,99850.0,0.03824627]
[1733623119805,0.00208,99851.0,99850.0,0.64970162]
[1733623120007,0.00208,99851.0,99850.0,0.36248768]
[1733623121604,0.00208,99851.0,99850.0,0.66250212]
[1733623122413,0.0997231,99858.0,99857.0,0.03502]
[1733623122605,0.08974498,99859.0,99857.0,0.00312925]
[1733623122796,0.08974498,99859.0,99858.0,0.07034825]
[1733623123595,0.37112268,99860.0,99858.0,0.03532925]
[1733623123596,0.46138767,99860.0,99858.0,0.03532925]
[1733623123800,0.46086766,99860.0,99859.0,0.03814825]
[1733623124201,0.46086766,99860.0,99859.0,0.03814778]
[1733623124700,0.46086766,99860.0,99859.0,0.03830778]
[1733623125098,0.46186766,99860.0,99859.0,0.03830778]
[1733623125299,0.52161144,99860.0,99859.0,0.03830778]
[1733623125503,0.01132268,99860.0,99859.0,0.07150778]
[1733623125709,0.001,99860.0,99859.0,0.07150778]
[1733623127310,0.001,99860.0,99859.0,0.068379]
[1733623127502,0.001,99860.0,99859.0,0.07150758]
[1733623132213,0.001,99860.0,99859.0,0.31151387]
[1733623133404,0.001,99860.0,99859.0,0.07150758]
[1733623138012,0.001,99860.0,99859.0,0.08402165]
[1733623138517,0.001,99860.0,99859.0,0.32402794]
[1733623139417,0.09060329,99860.0,99859.0,0.08402165]
[1733623139610,0.001,99860.0,99859.0,0.08402165]
[1733623140812,0.001,99860.0,99859.0,0.08402156]
[1733623143315,0.001,99860.0,99859.0,0.4155474]
[1733623143711,0.001,99860.0,99859.0,0.41554733]
[1733623143916,0.001,99860.0,99859.0,0.42965188]
[1733623144115,1e-06,99860.0,99859.0,0.42965188]
[1733623145021,1e-06,99860.0,99859.0,0.72965188]
[1733623146220,1e-06,99860.0,99859.0,0.96923175]
[1733623146410,1e-06,99860.0,99859.0,0.96919897]
[1733623146615,1e-06,99860.0,99859.0,0.72965188]
[1733623147218,1e-06,99860.0,99859.0,0.96923704]
[1733623147426,0.005,99878.0,99877.0,0.035013]
[1733623147626,0.01000942,99881.0,99880.0,0.035012]
[1733623147917,0.08960329,99885.0,99884.0,0.03501]
[1733623148123,0.16517673,99886.0,99885.0,0.03501]
[1733623148319,0.07557344,99886.0,99885.0,0.03813841]
[1733623148618,0.07557344,99886.0,99885.0,0.03829841]
[1733623149422,0.08157344,99886.0,99885.0,0.03829841]
[1733623150220,0.08557344,99886.0,99885.0,0.03829841]
[1733623153120,0.0756,99886.0,99885.0,0.03829841]
[1733623153920,0.0426,99886.0,99885.0,0.03829841]
[1733623154327,0.0426,99886.0,99885.0,0.05080914]
[1733623155018,0.0426,99886.0,99885.0,0.2304466]
[1733623155826,0.0426,99886.0,99885.0,0.05080914]
[1733623156215,0.0426,99886.0,99885.0,0.23042348]
[1733623156623,0.0426,99886.0,99885.0,0.05080914]
[1733623156923,0.01,99886.0,99885.0,0.29036733]
[1733623157325,0.01,99886.0,99885.0,0.29024165]
[1733623157526,0.01,99886.0,99885.0,0.62176765]
[1733623157722,0.00012249,99890.0,99889.0,0.035009]
[1733623157933,0.00012249,99890.0,99889.0,0.41144814]
[1733623158130,0.00012249,99890.0,99889.0,0.41160814]
[1733623158629,0.00012249,99890.0,99889.0,0.65089058]
[1733623159327,4.9e-07,99890.0,99889.0,0.74313414]
[1733623159530,0.00300049,99890.0,99889.0,0.98234587]
[1733623159732,0.00300049,99890.0,99889.0,0.74313414]
[1733623160121,0.00300049,99890.0,99889.0,0.9823457]
[1733623161424,0.00300049,99890.0,99889.0,0.74313079]
[1733623162629,0.00300049,99890.0,99889.0,0.38233079]
[1733623163829,0.00300049,99890.0,99889.0,0.3792053]
[1733623164028,0.00300049,99890.0,99889.0,0.38233287]
[1733623164430,0.00300049,99890.0,99889.0,0.05080687]
[1733623170346,0.00300049,99890.0,99889.0,0.38233197]
[1733623170931,0.00300049,99890.0,99889.0,0.68177971]
[1733623171134,0.00300049,99890.0,99889.0,0.38233197]
[1733623171943,0.00300049,99890.0,99889.0,0.68177971]
[1733623172134,0.00300049,99890.0,99889.0,1.04257971]
[1733623172440,0.00300049,99890.0,99889.0,1.0457022]
[1733623172841,4.9e-07,99890.0,99889.0,1.34495657]
[1733623173040,4.9e-07,99890.0,99889.0,1.04238634]
[1733623173443,4.9e-07,99890.0,99889.0,1.04584546]
[1733623173642,0.0634,99904.0,99890.0,0.331526]
[1733623173837,0.0634,99904.0,99903.0,0.035004]
[1733623174038,0.0634,99904.0,99903.0,0.03829139]
[1733623175640,0.0664,99904.0,99903.0,0.03829139]
[1733623175943,0.0664,99904.0,99903.0,0.035164]
[1733623176348,0.0664,99904.0,99903.0,0.03829126]
[1733623177239,0.0664,99904.0,99903.0,0.03929126]
[1733623177240,0.0714,99904.0,99903.0,0.03929126]
[1733623179536,0.22088876,99904.0,99903.0,0.03929126]
[1733623180447,0.12003939,99904.0,99903.0,0.03929126]
[1733623180645,0.12003939,99904.0,99903.0,0.03929123]
[1733623184348,0.12003939,99904.0,99903.0,0.036164]
[1733623184546,0.12003939,99904.0,99903.0,0.03929116]
[1733623185551,0.0714,99904.0,99903.0,0.03929116]
[1733623187555,0.0714,99904.0,99903.0,0.03929117]
[1733623196457,0.0714,99904.0,99903.0,0.27875812]
[1733623196659,0.0714,99904.0,99903.0,0.03929117]
[1733623198455,0.0714,99904.0,99903.0,0.27875812]
[1733623199556,0.24661401,99904.0,99903.0,0.03929117]
[1733623199767,0.12003984,99904.0,99903.0,0.03929117]
[1733623201261,0.15504284,99904.0,99903.0,0.03929117]
[1733623201454,0.12003984,99904.0,99903.0,0.03929117]
[1733623201654,0.08813984,99904.0,99903.0,0.03929117]
[1733623202058,0.21480936,99904.0,99903.0,0.03929117]
[1733623207372,0.214555,99904.0,99903.0,0.03929117]
[1733623207667,0.12765902,99904.0,99903.0,0.03929117]
[1733623207871,0.008,99904.0,99903.0,0.68265934]
[1733623208168,0.09775272,99904.0,99903.0,0.78725367]
[1733623208364,0.008,99904.0,99903.0,0.79747665]
[1733623209361,0.005,99904.0,99903.0,0.79747665]
[1733623209561,0.006,99904.0,99903.0,0.79747665]
[1733623209766,0.002,99904.0,99903.0,0.79647665]
[1733623210468,0.002,99904.0,99903.0,0.79647638]
[1733623212775,0.002,99904.0,99903.0,0.79354881]
[1733623213864,0.002,99904.0,99903.0,0.79354778]
[1733623214067,0.002,99904.0,99903.0,0.68322821]
[1733623214268,0.002,99904.0,99903.0,0.38232453]
[1733623214769,0.15157691,99904.0,99903.0,0.38232453]
[1733623215270,0.08313588,99904.0,99903.0,0.38232453]
[1733623215471,0.08313588,99904.0,99903.0,0.05079853]
[1733623216273,0.11814029,99904.0,99903.0,0.00328693]
[1733623216673,0.24899529,99904.0,99903.0,0.00328693]
[1733623216970,0.11814029,99904.0,99903.0,0.00328693]
[1733623217175,0.29763258,99904.0,99903.0,0.00328693]
[1733623217978,0.29763258,99904.0,99903.0,0.03829093]
[1733623218163,0.11814029,99904.0,99903.0,0.03829093]
[1733623219175,0.11814029,99904.0,99903.0,0.00328693]
[1733623219176,0.24430451,99904.0,99903.0,0.00328693]
[1733623219480,0.035004,99901.0,99900.0,7.519e-05]
[1733623219670,0.20980551,99901.0,99900.0,7.519e-05]
[1733623219876,0.20988551,99901.0,99900.0,7.519e-05]
[1733623221374,0.2439129,99901.0,99900.0,7.519e-05]
[1733623221577,0.2925613,99901.0,99900.0,7.519e-05]
[1733623221873,0.20912019,99901.0,99900.0,7.519e-05]
[1733623222575,0.037084,99901.0,99900.0,7.519e-05]
[1733623223078,0.040084,99901.0,99900.0,7.519e-05]
[1733623223472,0.18925039,99901.0,99900.0,7.519e-05]
[1733623223673,0.040084,99901.0,99900.0,7.519e-05]
[1733623227378,0.040084,99901.0,99900.0,0.03508019]
[1733623227590,0.00508,99901.0,99900.0,0.03508019]
[1733623227885,0.09452143,99901.0,99900.0,0.03508019]
[1733623228183,0.00508,99901.0,99900.0,0.03508019]
[1733623229681,0.040084,99901.0,99900.0,0.03508019]
[1733623230383,0.18914303,99901.0,99900.0,0.03508019]
[1733623231086,0.040084,99901.0,99900.0,0.03508019]
[1733623231279,0.1891759,99901.0,99900.0,0.03508019]
[1733623231881,0.08672722,99901.0,99900.0,0.00320267]
[1733623232184,0.08672722,99901.0,99890.0,0.035008]
[1733623232185,0.035008,99891.0,99890.0,0.035008]
[1733623232379,0.395808,99891.0,99890.0,0.03813556]
[1733623232687,0.395888,99891.0,99890.0,0.03813556]
[1733623233079,0.395888,99891.0,99890.0,0.03823529]
[1733623233689,0.395888,99891.0,99890.0,0.03923529]
[1733623234282,0.395888,99891.0,99890.0,0.03923564]
[1733623234586,0.395888,99891.0,99890.0,0.03610773]
[1733623234888,0.395888,99891.0,99890.0,0.03923564]
[1733623235083,0.44453305,99891.0,99890.0,0.03923564]
[1733623235477,0.44453799,99891.0,99890.0,0.03923564]
[1733623237783,0.395888,99891.0,99890.0,0.03923564]
[1733623238688,0.40605705,99891.0,99890.0,0.03923564]
[1733623239289,0.395888,99891.0,99890.0,0.03923564]
[1733623240083,0.36088,99891.0,99890.0,0.03923564]
[1733623241385,8e-05,99891.0,99890.0,0.03923564]
[1733623242800,8e-05,99891.0,99890.0,0.40003564]
[1733623244400,8e-05,99891.0,99890.0,0.63988022]
[1733623244593,8e-05,99891.0,99890.0,0.41254557]
[1733623244797,0.08941934,99905.0,99904.0,0.035003]
[1733623244997,0.035,99913.0,99907.0,0.035002]
[1733623244998,0.08941934,99908.0,99907.0,0.035002]
[1733623245206,0.08941934,99908.0,99907.0,0.03812936]
[1733623246305,0.0102358,99910.0,99907.0,0.18289502]
[1733623246505,0.08959559,99910.0,99908.0,0.00312736]
[1733623246803,0.08960635,99910.0,99909.0,0.03828936]
[1733623246997,0.035,99913.0,99909.0,0.00328736]
[1733623247202,0.08960725,99910.0,99909.0,0.035162]
[1733623247397,0.08960725,99910.0,99909.0,0.03812921]
[1733623247895,0.09260725,99910.0,99909.0,0.035002]
[1733623248201,0.09260725,99910.0,99909.0,0.03812921]
[1733623248404,0.09460725,99910.0,99909.0,0.03812921]
[1733623248604,0.005,99910.0,99909.0,0.21786171]
[1733623248905,0.005,99910.0,99909.0,0.035002]
[1733623249099,0.005,99910.0,99909.0,0.0381291]
[1733623249402,0.002,99910.0,99909.0,0.0381291]
[1733623249706,0.005,99910.0,99909.0,0.29017595]
[1733623250601,0.005,99910.0,99909.0,0.0506373]
[1733623251405,0.005,99910.0,99909.0,0.04750954]
[1733623251599,0.005,99910.0,99909.0,0.03812888]
[1733623252206,0.005,99910.0,99909.0,0.035002]
[1733623252502,0.035002,99907.0,99906.0,0.331526]
[1733623252707,0.21389658,99907.0,99906.0,0.331526]
[1733623252908,0.08372257,99907.0,99906.0,0.33465324]
[1733623253103,0.08372257,99907.0,99906.0,0.366529]
[1733623253714,0.08672257,99907.0,99906.0,0.366529]
[1733623253899,0.08672257,99907.0,99906.0,0.36965625]
[1733623254100,0.08472257,99907.0,99906.0,0.36965625]
[1733623254404,0.08472221,99907.0,99906.0,0.36965625]
[1733623254601,0.08572221,99907.0,99906.0,0.03813025]
[1733623254907,0.08572221,99907.0,99906.0,0.03813028]
[1733623255105,0.08572221,99907.0,99906.0,0.035003]
[1733623255309,0.08572221,99907.0,99906.0,0.03813028]
[1733623257999,0.08572221,99907.0,99906.0,0.00312728]
[1733623258506,0.037082,99907.0,99906.0,0.00312728]
[1733623258801,0.035003,99905.0,99904.0,0.00016]
[1733623259002,0.08364321,99905.0,99904.0,0.00328747]
[1733623259305,0.08372321,99905.0,99904.0,0.00328747]
[1733623259709,0.035083,99905.0,99904.0,0.00328747]
[1733623260007,0.036083,99905.0,99904.0,0.00328747]
[1733623261015,0.036083,99905.0,99904.0,0.00328748]
[1733623261200,0.12561348,99905.0,99904.0,0.00328748]
[1733623261405,0.12561348,99905.0,99904.0,0.00016]
[1733623261605,0.12561348,99905.0,99904.0,0.00328751]
[1733623262005,0.12561348,99905.0,99904.0,0.00016]
[1733623262201,0.036083,99905.0,99904.0,0.00016]
[1733623264315,0.12562507,99905.0,99904.0,0.00016]
[1733623264711,0.036083,99905.0,99904.0,0.00016]
[1733623267813,0.21514397,99905.0,99904.0,0.00016]
[1733623268007,0.08472728,99905.0,99904.0,0.00016]
[1733623268206,0.21020433,99905.0,99904.0,0.00016]
[1733623272116,0.21013336,99905.0,99904.0,0.00016]
[1733623274728,0.08473054,99905.0,99904.0,0.00016]
[1733623276523,0.26388694,99905.0,99904.0,0.00016]
[1733623276829,0.26388694,99905.0,99904.0,1e-06]
[1733623276830,0.08473464,99905.0,99904.0,1e-06]
[1733623277031,0.08473464,99905.0,99877.0,0.035013]
[1733623277032,0.34973164,99905.0,99877.0,0.17956177]
[1733623277325,0.34973164,99905.0,99868.0,0.031]
[1733623277326,0.035011,99881.0,99875.0,0.17956177]
[1733623277516,0.035011,99881.0,99880.0,0.00462969]
[1733623277720,0.035091,99881.0,99880.0,0.00462969]
[1733623278328,0.035091,99881.0,99880.0,0.00470692]
[1733623278623,0.035091,99881.0,99880.0,0.00970692]
[1733623279230,0.035091,99881.0,99880.0,0.01370692]
[1733623280124,0.035091,99881.0,99880.0,0.01170692]
[1733623284325,0.04515714,99881.0,99880.0,0.00857885]
[1733623286537,0.40595714,99881.0,99880.0,0.00857885]
[1733623291533,0.40595714,99881.0,99880.0,0.01170708]
[1733623294434,0.40595714,99881.0,99880.0,0.01170707]
[1733623296139,0.55514439,99881.0,99880.0,0.01170707]
[1733623297148,0.40595714,99881.0,99880.0,0.01170707]
[1733623301136,0.52540558,99881.0,99880.0,0.00857885]
[1733623301447,0.52540558,99881.0,99880.0,0.01170708]
[1733623301833,0.16460558,99881.0,99880.0,0.01170708]
[1733623302044,0.52540558,99881.0,99880.0,0.01170708]
[1733623303244,0.40595714,99881.0,99880.0,0.19126885]
[1733623304242,0.40595714,99881.0,99880.0,0.01170708]
[1733623304647,0.40595714,99881.0,99880.0,0.00857885]
[1733623304842,0.40595714,99881.0,99880.0,0.01170707]
[1733623305042,0.63363672,99881.0,99880.0,0.00857885]
[1733623305241,0.45461202,99881.0,99880.0,0.01170707]
[1733623308142,0.45461202,99881.0,99880.0,0.01170708]
[1733623309252,0.45461202,99881.0,99880.0,0.01170709]
[1733623313054,0.55548956,99881.0,99880.0,0.01170709]
[1733623313450,0.40595714,99881.0,99880.0,0.19185444]
[1733623313644,0.40595714,99881.0,99880.0,0.01170709]
[1733623313645,0.45461386,99881.0,99880.0,0.01170709]
[1733623314043,0.63405276,99881.0,99880.0,0.01170709]
[1733623314249,0.45461386,99881.0,99880.0,0.01170709]
[1733623314453,0.45461386,99881.0,99880.0,0.00857885]
[1733623314656,0.45461386,99881.0,99880.0,0.00707723]
[1733623314953,0.63405276,99881.0,99880.0,0.00707723]
[1733623315151,0.45461386,99881.0,99880.0,0.00707723]
[1733623315545,0.45461659,99881.0,99880.0,0.00707723]
[1733623317050,0.55542031,99881.0,99880.0,0.01020568]
[1733623317356,0.40595714,99881.0,99880.0,0.01020568]
[1733623318347,0.40595714,99881.0,99880.0,0.00707723]
[1733623318641,0.40595714,99881.0,99880.0,0.01020557]
[1733623318948,0.55542031,99881.0,99880.0,0.01020557]
[1733623319157,0.40595714,99881.0,99880.0,0.01020557]
[1733623320055,0.57885258,99881.0,99880.0,0.01020557]
[1733623320451,0.57889012,99881.0,99880.0,0.01020557]
[1733623321548,0.4445473,99881.0,99880.0,0.04521757]
[1733623322149,0.62387456,99881.0,99880.0,0.04521757]
[1733623322357,0.0487363,99881.0,99880.0,0.04521757]
[1733623322560,0.17932726,99888.0,99885.0,0.03501]
[1733623322852,0.17932726,99889.0,99888.0,0.035009]
[1733623323157,0.58583408,99890.0,99888.0,0.03829734]
[1733623323458,0.40594681,99890.0,99889.0,0.00328834]
[1733623324051,0.40594681,99890.0,99889.0,0.00016]
[1733623324551,0.40594681,99890.0,99889.0,0.00328787]
[1733623325257,0.40594681,99890.0,99889.0,0.00428787]
[1733623327349,0.40594681,99890.0,99889.0,0.00116]
[1733623327566,0.53012026,99890.0,99889.0,0.00428804]
[1733623328057,0.55530423,99890.0,99889.0,0.00428804]
[1733623328452,0.40594681,99890.0,99889.0,0.00428804]
[1733623328854,0.58650423,99890.0,99889.0,0.00428804]
[1733623329561,0.43714681,99890.0,99889.0,0.00428804]
[1733623330260,0.58650423,99890.0,99889.0,0.00428804]
[1733623330855,0.58650423,99890.0,99889.0,0.00428817]
[1733623331055,0.43714681,99890.0,99889.0,0.00428817]
[1733623332165,0.43714681,99890.0,99889.0,0.00328817]
[1733623332357,0.44014681,99890.0,99889.0,0.00328817]
[1733623334167,0.44214681,99890.0,99889.0,0.00016]
[1733623334460,0.44214681,99890.0,99889.0,0.00328805]
[1733623335959,0.59150423,99890.0,99889.0,0.00328805]
[1733623336574,0.59150423,99890.0,99889.0,0.00016]
[1733623337864,0.44214681,99890.0,99889.0,0.00016]
[1733623339665,0.59150423,99890.0,99889.0,0.00016]
[1733623339869,0.44214681,99890.0,99889.0,0.00016]
[1733623342072,0.61494817,99890.0,99889.0,0.00016]
[1733623344671,0.61494817,99890.0,99889.0,0.00328807]
[1733623345561,0.58374817,99890.0,99889.0,0.00328807]
[1733623346770,0.45960001,99890.0,99889.0,0.00328807]
[1733623347468,0.45959671,99890.0,99889.0,0.00328807]
[1733623347970,0.45959671,99890.0,99889.0,0.0032879]
[1733623349070,0.5841995,99890.0,99889.0,0.0032879]
[1733623349273,0.45959671,99890.0,99889.0,0.0032879]
[1733623349773,0.58422169,99890.0,99889.0,0.0032879]
[1733623349972,0.45959671,99890.0,99889.0,0.0032879]
[1733623350174,0.41094681,99890.0,99889.0,0.0032879]
[1733623351162,0.41094681,99890.0,99889.0,0.18343539]
[1733623351574,0.41094681,99890.0,99889.0,0.0032879]
[1733623354972,0.41094681,99890.0,99889.0,0.00328794]
[1733623356771,0.41094681,99890.0,99889.0,0.00016]
[1733623356972,0.41094681,99890.0,99889.0,0.00328802]
[1733623357172,0.45959862,99890.0,99889.0,0.00328802]
[1733623358578,0.58415839,99890.0,99889.0,0.00328802]
[1733623361476,0.58415839,99890.0,99889.0,0.00328804]
[1733623362074,0.58408226,99890.0,99889.0,0.00328804]
[1733623363576,0.035011,99881.0,99880.0,7.723e-05]
[1733623363779,0.409452,99881.0,99864.0,0.035017]
[1733623363974,0.18454679,99865.0,99864.0,0.035017]
[1733623364176,0.083669,99865.0,99864.0,0.035017]
[1733623364889,0.083669,99865.0,99864.0,0.042017]
[1733623365272,0.12466234,99865.0,99864.0,0.042017]
[1733623365473,0.035017,99865.0,99864.0,0.042017]
[1733623365676,0.035017,99865.0,99864.0,0.046017]
[1733623365980,0.08964534,99867.0,99866.0,0.035017]
[1733623366183,0.08964534,99871.0,99866.0,0.40833038]
[1733623366382,0.08964534,99878.0,99870.0,0.29961278]
[1733623366686,0.035012,99880.0,99879.0,0.035012]
[1733623366883,0.035012,99880.0,99879.0,0.27487957]
[1733623367084,8e-05,99881.0,99880.0,0.035012]
[1733623367476,8e-05,99881.0,99880.0,0.035172]
[1733623368083,8e-05,99881.0,99880.0,0.27503957]
[1733623368288,8e-05,99881.0,99880.0,0.035172]
[1733623369393,8e-05,99881.0,99880.0,0.036172]
[1733623369687,8e-05,99881.0,99880.0,0.00116]
[1733623369688,0.12473634,99881.0,99880.0,0.00116]
[1733623369881,0.097591,99881.0,99880.0,0.00116]
[1733623370077,0.21715954,99881.0,99880.0,0.00116]
[1733623370279,0.097591,99881.0,99880.0,0.00116]
[1733623372182,0.14624807,99881.0,99880.0,0.00116]
[1733623375887,0.097591,99881.0,99880.0,0.0042882]
[1733623376791,0.14624593,99881.0,99880.0,0.0042882]
[1733623377394,0.097591,99881.0,99880.0,0.0042882]
[1733623377690,0.14624554,99881.0,99880.0,0.0042882]
[1733623380293,0.097591,99881.0,99880.0,0.0042882]
[1733623380687,0.21703758,99881.0,99880.0,0.0042882]
[1733623382090,0.097591,99881.0,99880.0,0.0042882]
[1733623382795,0.097591,99881.0,99880.0,0.00428821]
[1733623383991,0.21703758,99881.0,99880.0,0.00428821]
[1733623384382,0.097591,99881.0,99880.0,0.00428821]
[1733623384589,0.097591,99881.0,99880.0,0.00116]
[1733623384796,0.097591,99881.0,99877.0,0.00016]
[1733623384797,0.14625126,99881.0,99877.0,0.00016]
[1733623385094,0.14625126,99881.0,99860.0,0.00010442]
[1733623385095,0.035015,99871.0,99860.0,0.23996704]
[1733623385297,0.035018,99861.0,99860.0,0.00010442]
[1733623385498,0.035018,99861.0,99860.0,0.03512342]
[1733623385794,0.035018,99861.0,99860.0,0.27498604]
[1733623385990,0.035098,99861.0,99860.0,0.03512342]
[1733623386889,0.035098,99861.0,99860.0,0.04412342]
[1733623386890,0.036098,99861.0,99860.0,0.04412342]
[1733623387888,0.037098,99861.0,99860.0,0.04812342]
[1733623389500,0.00208,99861.0,99860.0,0.04812342]
[1733623396905,0.00208,99861.0,99860.0,0.05125203]
[1733623401509,0.00208,99861.0,99860.0,0.05125206]
[1733623402011,0.00208,99861.0,99860.0,0.41205206]
[1733623402200,0.08958895,99880.0,99860.0,1.37620544]
[1733623402407,0.00508,99881.0,99875.0,0.23977855]
[1733623402408,0.08958895,99879.0,99875.0,0.23977855]
[1733623402707,8e-05,99881.0,99880.0,0.035012]
[1733623402911,8e-05,99881.0,99880.0,0.03814064]
[1733623403110,8e-05,99881.0,99880.0,0.03830064]
[1733623404909,8e-05,99881.0,99880.0,0.03830007]
[1733623405309,8e-05,99881.0,99880.0,0.03930007]
[1733623407003,8e-05,99881.0,99880.0,0.27907862]
[1733623407210,8e-05,99881.0,99880.0,0.03930007]
[1733623407409,8e-05,99881.0,99880.0,0.29144629]
[1733623408111,8e-05,99881.0,99880.0,0.05181161]
[1733623408310,8e-05,99881.0,99880.0,0.29140037]
[1733623409310,8e-05,99881.0,99880.0,0.03930007]
[1733623410816,8e-05,99881.0,99880.0,0.40010007]
[1733623411005,8e-05,99881.0,99880.0,0.41261155]
[1733623411812,0.08955829,99881.0,99880.0,0.03930007]
[1733623412109,8e-05,99881.0,99880.0,0.03930007]
[1733623412505,0.066791,99881.0,99880.0,0.03930007]
[1733623412705,0.097791,99881.0,99877.0,0.331526]
[1733623412916,0.035012,99878.0,99877.0,0.331526]
[1733623413308,0.395812,99878.0,99877.0,0.331526]
[1733623413506,0.62390385,99878.0,99877.0,0.281626]
[1733623413706,0.62390385,99878.0,99870.0,0.035015]
[1733623413707,0.035015,99871.0,99870.0,0.035015]
[1733623413907,0.1840799,99871.0,99870.0,0.035015]
[1733623414107,0.035017,99866.0,99865.0,0.035017]
[1733623414309,0.035017,99866.0,99865.0,0.04752937]
[1733623414501,0.035097,99866.0,99865.0,0.04752937]
[1733623415011,0.035097,99866.0,99865.0,0.035017]
[1733623415215,0.035097,99866.0,99865.0,0.04752945]